Cogmind - Beta 16 @@@ ROGUE MODE // 2025.12.02 @ 21:54:53 Player: GLC Result: Destroyed by L-31 Rogue with Katana Performance ------------- Evolutions (1) 500 Regions Visited (2) 400 Robots Destroyed (68) 340 Value Destroyed (1454) 1454 Prototype IDs (1) 20 Alien Tech Used (0) 0 Bonus (0) 0 TOTAL SCORE: 2714 Bonus ------- None Cogmind --------- Core Integrity 0/400 Matter 295/300 Energy 22/250 System Corruption 1% Temperature Cool (9) Movement Core (500) Ox9 Location -9/Materials Parts ------- > --- POWER (1) -------- Ion Engine > --- PROPULSION (2) --- (None) > --- UTILITY (4) ------ Large Storage Unit Transport Network Coupler ECM Suite > --- WEAPON (2) ------- Heavy Hammer > --- INVENTORY (15) --- Ion Engine Light Treads Light Treads Improved Treads Wheel Heat Sink Heat Sink Rocket Launcher Peak State ------------ > --- POWER ------------ Cooled Ion Engine > --- PROPULSION ------- Improved Treads Improved Treads > --- UTILITY ---------- Large Storage Unit Transport Network Coupler ECM Suite Shield Generator > --- WEAPON ----------- Assault Rifle Heavy Hammer > --- INVENTORY -------- Ion Engine Ion Engine Light Treads Light Treads Improved Treads Wheel Heat Sink Heat Sink Small Laser [Rating: 16] Favorites ----------- Power Light Ion Engine Engine Light Ion Engine Propulsion Improved Treads Treads Improved Treads Wheel Wheel Utility Small Storage Unit Device ECM Suite Storage Small Storage Unit Processor Transport Network Coupler Hackware Hacking Suite Weapon Light Assault Rifle Energy Gun Heavy EM Pulse Gun Ballistic Gun Light Assault Rifle Launcher Grenade Launcher Impact Weapon Heavy Hammer Build | -11 -10 -9 ------- Run | Yrd Mat Mat Slots Evolved 2 | . . 2 Power . | . . . Propulsion . | . . . Utility 2 | . . 2 Weapon . | . . . Parts Attached 43 | 7 20 16 Power 8 | 1 5 2 Engine 8 | 1 5 2 Core . | . . . Reactor . | . . . Propulsion 11 | 2 7 2 Treads 4 | . 2 2 Leg . | . . . Wheel 7 | 2 5 . Hover . | . . . Flight . | . . . Utility 11 | 2 3 6 Device 6 | 1 2 3 Storage 3 | 1 . 2 Processor 1 | . . 1 Hackware 1 | . 1 . Protection . | . . . Artifact . | . . . Weapon 13 | 2 5 6 Energy Gun 3 | . 1 2 Energy Cannon . | . . . Ballistic Gun 8 | 2 3 3 Ballistic Cannon . | . . . Launcher 1 | . 1 . Special Weapon . | . . . Impact Weapon 1 | . . 1 Slashing Weapon . | . . . Piercing Weapon . | . . . Special Melee Weapon . | . . . Unidentified Prototypes 1 | . . 1 Parts Lost 21 | . 6 15 Power 3 | . 1 2 Propulsion 5 | . 1 4 Utility 5 | . 1 4 Weapon 8 | . 3 5 Highest Loss Streak 5 | . 4 5 To Critical Strikes . | . . . Average Backups 7 | 1 7 8 Power 1 | 1 1 1 Propulsion 4 | . 3 4 Utility 1 | . 2 . Weapon . | . . 1 Tool/Special . | . . . Unused Backups 17 | . 6 11 Power 3 | . 2 1 Propulsion 9 | . 2 7 Utility 3 | . 1 2 Weapon 2 | . 1 1 Tool/Special . | . . . Average Slot Usage (%) 95 | . 97 93 Engine 12 | . 13 10 Treads 17 | . 13 21 Wheel 8 | . 13 . Device 9 | . 3 18 Storage 12 | . 14 11 Processor 3 | . . 9 Hackware 6 | . 10 . Energy Gun 2 | . 2 3 Ballistic Gun 19 | . 24 13 Launcher 1 | . . 3 Peak Build Rating 16 | 7 13 16 Average Rating 11 | 5 10 13 On Entrance 6 | . 7 13 Avg Prop Armor Cover (%) 9 | . . 9 Naked Turns . | . . . Heaviest Build 37 | 13 14 37 Greatest Support 46 | 20 46 46 Greatest Overweight (x) 1 | 1 1 1 Average Overweight (x) . | . . . Largest Inventory Capacity 15 | 8 8 15 Average Capacity 9 | 7 8 12 Most Carried 10 | 6 8 10 Average Carried 7 | 1 7 8 Final Capacity 15 | 8 8 15 Final Carried 8 | 6 8 8 Class Distribution -------------------- 61% | Mutant 38% | Scavenger-Mutant Dominant Class ---------------- Scavenger-Mutant | -10/Materials Mutant | -9/Materials Resources | -11 -10 -9 ----------- Run | Yrd Mat Mat Matter Collected 1791 | 225 805 761 Remotely . | . . . Salvage Created 2060 | 157 762 1141 Parts 138 | 15 51 72 Haulers Intercepted 5 | . 2 3 Recyclers Shooed 2 | 1 1 . Parts Field Recycled . | . . . Retrieved Matter . | . . . Parts Self-Destructed . | . . . Prevented . | . . . Parts Restored . | . . . Kills | -11 -10 -9 ------- Run | Yrd Mat Mat Combat Hostiles Destroyed 39 | . 14 25 Melee 1 | . . 1 Guns 26 | . 12 14 AOE 12 | . 2 10 Classes Destroyed 10 | 3 6 1 Worker 9 | 2 3 4 Builder 2 | . 1 1 Tunneler 6 | 3 2 1 Hauler 5 | . 2 3 Recycler 3 | 1 1 1 Operator 1 | . 1 . Watcher 3 | . 3 . Swarmer 8 | . 6 2 Grunt 26 | . 8 18 Sentry 5 | . . 5 Best Kill Streak 5 | 3 3 5 Combat Bots Only 4 | . 3 4 Max Kills in Single Turn 2 | 1 1 2 Gunslinging . | . . . Exploded 2 | . 1 2 Melee 1 | . . 1 Uniques/NPCs Destroyed . | . . . Combat | -11 -10 -9 -------- Run | Yrd Mat Mat Hostile Shots Fired 332 | . 122 210 Missed 103 | . 42 61 Hits 229 | . 80 149 Melee 7 | . . 7 Projectile 222 | . 80 142 Critical Strikes 5 | . 3 2 Damage Taken 2819 | . 1016 1803 Core 626 | . 202 424 Absorbed by Shields 202 | . . 202 Core Remaining (%) 59 | 100 19 . Volleys Fired 222 | 17 119 86 Largest 2 | 2 2 2 Hottest 75 | 40 65 75 Shots Fired 388 | 34 208 146 Gun 358 | 34 204 120 Cannon . | . . . Launcher 30 | . 4 26 Special . | . . . Kinetic 339 | 34 202 103 Thermal 6 | . . 6 Explosive 30 | . 4 26 Electromagnetic 13 | . 2 11 Robot Hit Streak 15 | 4 10 15 Robot Miss Streak 6 | 4 6 4 Penetration Max . | . . . Secondary Targets 1 | . 1 . Max Gunslinging Chain 1 | . 1 . Shots Hit Robots 236 | 15 125 96 Core Hits 110 | 7 43 60 Critical Kills 1 | . 1 . Critical Parts Destroyed 4 | . 2 2 Critical Strikes 5 | . 3 2 Destroy 3 | . 3 . Smash 2 | . . 2 Melee Attacks 9 | . . 9 Impact 9 | . . 9 Slashing . | . . . Piercing . | . . . Sneak Attacks 2 | . . 2 Combat Hostiles . | . . . Follow-up Attacks . | . . . Damage Inflicted 4319 | 179 1603 2537 Guns 2432 | 179 1357 896 Cannons . | . . . Explosions 1443 | . 246 1197 Melee 441 | . . 441 Ramming 3 | . . 3 Kinetic 2277 | 179 1325 773 Thermal 42 | . . 42 Explosive 1443 | . 246 1197 Electromagnetic 113 | . 32 81 Impact 441 | . . 441 Slashing . | . . . Piercing . | . . . Highest Corruption 1 | . 1 1 Average Corruption 1 | . 1 1 Corruption Purged . | . . . Corruption Blocked . | . . . Effects 22 | . 15 7 Message Errors 5 | . 3 2 Matter Fused 6 | . 5 1 Heat Flow Errors 5 | . 3 2 Data Loss (minor) 4 | . 3 1 Misfires 1 | . 1 . Alerts 1 | . . 1 Overload Shots . | . . . Overflow Damage 117 | . 6 111 Projectiles . | . . . Explosions 21 | . 6 15 Melee 96 | . . 96 Knockbacks 1 | . . 1 Impact 1 | . . 1 Kinetic . | . . . Secondary . | . . . Self-Inflicted Damage 26 | . . 26 Shots 3 | . . 3 Rammed 1 | . . 1 Targets Rammed 1 | . . 1 Kicked . | . . . Crushed . | . . . Highest Temperature 165 | . 159 165 Average Temperature 31 | . 32 30 Received Heat Transfer 1108 | . 447 661 Siege Activations . | . . . Martial Activations . | . . . Shielding Activations . | . . . Robots Disrupted . | . . . Combat Hostiles . | . . . Robots Corrupted . | . . . Combat Hostiles . | . . . Parts Fried 1 | . . 1 Impact Corruptions 3 | . . 3 Robots Melted . | . . . Combat Hostiles . | . . . Parts Melted . | . . . Heat Transferred 100 | . . 100 Parts Sabotaged . | . . . Parts Stolen . | . . . Parts Stripped . | . . . Power Chain Reactions . | . . . Alert | -11 -10 -9 ------- Run | Yrd Mat Mat Maximum Alert Level 1 | . . 1 Low Security (%) 73 | 100 100 30 Level 1 26 | . . 69 Level 2 . | . . . Level 3 . | . . . Level 4 . | . . . Level 5 . | . . . High Security . | . . . Max Security . | . . . Peak Influence 375 | 10 85 375 Initial 9 | . . 9 Average 103 | 1 22 234 Influence Increases 1418 | 30 508 880 Destroy 0b10 Robot/C 780 | . 280 500 Destroy 0b10 Robot/NC 145 | 30 65 50 Destroy Leader 216 | . 80 136 Successful Hack 31 | . 9 22 Disable Machine 90 | . . 90 Destroy Structure 96 | . 14 82 Lose Combat Pursuer 60 | . 60 . Influence Decreases 1142 | 30 486 626 Entered New Map 13 | . . 13 Time Decay 929 | 30 436 463 Lost Part 200 | . 50 150 Squads Dispatched 9 | . 2 7 Investigation 7 | . 1 6 Extermination . | . . . Reinforcement 2 | . 1 1 Assault . | . . . Garrison . | . . . Intercept . | . . . Searches Triggered . | . . . Construction Impeded 1 | . . 1 Haulers Reinforced . | . . . Active Scanning Responses . | . . . Cargo Convoy Interrupts . | . . . Stealth | -11 -10 -9 --------- Run | Yrd Mat Mat Distress Signals 6 | . . 6 Communications Jammed . | . . . Distress Signals . | . . . Times Spotted 78 | . 30 48 Peak Tracking Total 5 | . 5 5 Tactical Retreats 10 | . 4 6 ECM-based Alert Blocks 11 | . 3 8 Traps | -11 -10 -9 ------- Run | Yrd Mat Mat Traps Triggered 7 | . 4 3 Indirectly . | . . . Trap Hack Attempts . | . . . Triggered . | . . . Disarmed . | . . . Reprogrammed . | . . . Reused . | . . . Traps Extracted . | . . . Installed . | . . . Triggered . | . . . Machines | -11 -10 -9 ---------- Run | Yrd Mat Mat Machines Disabled 6 | . . 6 Max in Single Turn 2 | . . 2 Machines Repaired . | . . . Machines Dismantled . | . . . Machines Sabotaged . | . . . Overloaded Fab Kills . | . . . Hacking | -11 -10 -9 --------- Run | Yrd Mat Mat Machines Accessed 10 | . 6 4 Terminals 6 | . 4 2 Fabricators . | . . . Repair Stations . | . . . Recycling Units 3 | . 2 1 Scanalyzers 1 | . . 1 Garrison Access . | . . . Total Hacks 32 | . 18 14 Successful 17 | . 10 7 Failed 15 | . 8 7 Catastrophic 4 | . 2 2 Database Lockouts . | . . . Manual 10 | . 9 1 Terminals 22 | . 16 6 Fabricators . | . . . Repair Stations . | . . . Recycling Units 7 | . 2 5 Scanalyzers 3 | . . 3 Garrison Access . | . . . Terminal Hacks 11 | . 8 3 Record 3 | . 3 . Level Access Points 1 | . 1 . Emergency Access Points 2 | . 2 . Alert Level 2 | . . 2 Dispatch Records 2 | . 1 1 Hauler Manifests 1 | . 1 . Fabricator Hacks . | . . . Repair Station Hacks . | . . . Recycling Unit Hacks 4 | . 2 2 Process 1 | . . 1 Report Inventory 3 | . 2 1 Scanalyzer 2 | . . 2 Insert Component 1 | . . 1 Analyze 1 | . . 1 Garrison Access Hacks . | . . . Unauthorized Hacks . | . . . Terminals . | . . . Fabricators . | . . . Repair Stations . | . . . Recycling Units . | . . . Scanalyzers . | . . . Garrison Access . | . . . Data Cores Recovered . | . . . Used . | . . . Hacking Detections 8 | . 4 4 Full Trace Events 6 | . 3 3 Feedback Events 3 | . 1 2 Corruption 2 | . 1 1 Hackware Fried 1 | . . 1 Feedback Blocked . | . . . Robot Schematics Acquired . | . . . Robots Built . | . . . Authchips . | . . . Time . | . . . Total Robot Build Rating . | . . . Part Schematics Acquired 1 | . . 1 Parts Built . | . . . Authchips . | . . . Time . | . . . Total Part Build Rating . | . . . Part Studies Acquired . | . . . Parts Repaired . | . . . Time . | . . . Parts Recycled . | . . . Recycled Matter 236 | . . 236 Retrieved Matter . | . . . Retrieved Components . | . . . Parts Scanalyzed 1 | . . 1 Part Schematics Acquired 1 | . . 1 Parts Damaged . | . . . Bothacking | -11 -10 -9 ------------ Run | Yrd Mat Mat Used RIF Installer . | . . . Robots Hacked . | . . . Non-combat . | . . . Combat . | . . . Robot Hacks Applied . | . . . Relay Couplers Released . | . . . Fabnet Peak Effective % . | . . . Robots Rewired . | . . . Allies Hacked . | . . . Hacks Repelled . | . . . Allies | -11 -10 -9 -------- Run | Yrd Mat Mat Total Allies . | . . . Largest Group . | . . . Highest-Rated Group . | . . . Highest-Rated Ally . | . . . Total Orders . | . . . Ally Attacks . | . . . Total Damage . | . . . Kills . | . . . Allies Corrupted . | . . . Allies Melted . | . . . Intel | -11 -10 -9 ------- Run | Yrd Mat Mat Active Infowar (turns) 1948 | 74 457 1417 Seismic 459 | 74 223 162 T.N.C. 1213 | . . 1213 ECM 1651 | . 234 1417 Robot Analysis Total . | . . . Derelict Logs Recovered . | . . . Drone Launches . | . . . Drone Recoveries . | . . . Exploration | -11 -10 -9 ------------- Run | Yrd Mat Mat Turns Passed 3803 | 155 2180 1468 Spaces Moved 2300 | 103 1602 595 Core 9 | 9 . . Treads 1236 | . 641 595 Legs . | . . . Wheels 1055 | 94 961 . Hover . | . . . Flight . | . . . Fastest Speed 50 | 50 80 160 Average Speed 123 | 81 112 162 Slowest Speed 240 | 95 160 240 Overloaded Moves . | . . . Propulsion Burnouts . | . . . Robots Hopped . | . . . Potential Cave-ins . | . . . Cave-ins Triggered . | . . . Exploration Rate (%) 55 | 6 99 60 Regions Visited 2 Branch Regions . Pre-discovered Areas . | . . . Known Exits Taken 1 | . 1 . Unknown Exits Taken 1 | 1 . . Scrap Searched . | . . . Spaces Dug . | . . . Terrain Destroyed 114 | . 21 93 Melee . | . . . Projectile . | . . . AOE 114 | . 21 93 Terrain Rammed . | . . . Walls Destroyed . | . . . Machines Disabled . | . . . Actions | -11 -10 -9 --------- Run | Yrd Mat Mat Total 2884 | 139 1798 947 Wait 203 | . 2 201 Move 2298 | 102 1601 595 Hop . | . . . Pick Up 66 | 13 31 22 Fast Attach . | . . . Attach 33 | 7 11 15 Detach 1 | . . 1 Swap 22 | . 14 8 Drop 29 | . 20 9 Fire 222 | 17 119 86 Melee 9 | . . 9 Ram . | . . . Kick . | . . . Crush 1 | . . 1 Escape Stasis . | . . . Rewire . | . . . Trap . | . . . Miscellaneous . | . . . Route ------- -11/Scrapyard -10/Materials (discovered 5 exits: *Mat x3 / [*Min] / [*Sub]) -9/Materials (discovered 3 exits: [*Mat x2] / [*Sto]) History --------- Turn | Location | Event 18 | -11/Scrapyard | Discovered new exit (range 15) 156 | -11/Scrapyard | Entered Materials 308 | -10/Materials | Build established: Mutant 432 | -10/Materials | Core integrity fell below 50% 470 | -10/Materials | Lost 4 parts (1p1n2w) 773 | -10/Materials | Discovered new exit (range 10) 795 | -10/Materials | Discovered new exit (range 6) 872 | -10/Materials | Build established: Scavenger-Mutant 872 | -10/Materials | Discovered new exit (range 7) 1220 | -10/Materials | Discovered new exit (range 16) 1579 | -10/Materials | Identified exit to Materials 1967 | -10/Materials | Core integrity fell below 20% 2275 | -10/Materials | Build established: Mutant 2336 | -10/Materials | Entered another Materials area 2336 | -9/Materials | Evolved 2 slots: Utility x2 2351 | -9/Materials | Hacking Suite fried by hacking feedback 2856 | -9/Materials | Discovered new exit (range 15) 3368 | -9/Materials | Core integrity fell below 50% 3443 | -9/Materials | Lost 3 parts (1n2w) 3528 | -9/Materials | Discovered new exit (range 15) 3739 | -9/Materials | Discovered new exit (range 11) 3795 | -9/Materials | Core integrity fell below 20% 3804 | -9/Materials | Destroyed by L-31 Rogue with Katana Last Messages --------------- Destroyed Wheel. K-01 Serf system corrupted by crushing effect. K-01 Serf destroyed. Acquired Rocket Launcher. EXIT=FOUND Sneak attack on A-02 Transporter. Assault Rifle destroyed. Critical hit (Burn: +27). System corrupted: Heat flow error (+188). Y-45 Defender suffers critical hit (Smash). Destroyed Lgt. Treads. Y-45 Defender system corrupted by crushing effect. Imp. Treads destroyed. Cld. Ion Engine destroyed. System corrupted: Matter fused (-8). Shield Generator destroyed. Y-45 Defender misfires. Sml. Laser destroyed. Imp. Treads destroyed. Map ----- +----------------------------------------------------+ | ?????????????????? ????????????????# | | ?????????????????? < ????????????????# | | ?????????????????? ????????????????# | | ??????????????????# #????????????????# | | ??????????????????# #????????????????# "" "" | | ??????????????????+ #????????????????# ""S"" | | ??????????????????# #######+####?????# """" | | ??????????????????# ## #?????# | | ??????????????????# ## #?????####### | | ??????????????????# ## #?????????? ? | | ??????????????????# ## #?????????# " | | ??????????????????# ## #?????????# " | | ???????????###????# + #?????????# " | | ???????????# ??# ## #?????????# | | ???????????# # ## #?????????# " | | ???????????# + ####+#######?????????# " | | ???????????# # +?????????# " | | ???????????# ??# #######?????????# | | ???????????# ????# m##/#####???????????##### | | ???????????#??????# # ####### | | ??????????????????+ # + | | ??????????????????# # ####### | | ??????????????????#Y g #?????? ####### | | ??????????????????# # #???????????????? | | ??????????????????#Yl# #???????????????? | | ??????????????????# @########???????????????? | | ??????????????????# #??????????????????????? | | ??????????????????# #??????????????????????? | | ??????????????????# #??????????????????????? | | ???????############ #??????????????????????? | | ???????# ## #??????????????????????? | | ########""" """ ## #??????????????????????? | | # #"T """ ## #??????????????? ??????? | | # #""" """ ## #??????????????? ??????? | | # # ## #?????????????? ??????? | | # # ## #######???????? #?????? | | # #+##+####### # #???????? ?????? | | # # #???????? ?????? | | # +% #????????T ?????? | | # #% #???????? ?????? | | # ## ########+### #???????? ###+## | | # ## #???# ## ##????????# ## | | # ## #???# ## #????????## ## """ | | # ## #???#// ## #????????? ## """ | | # ## #???#/// ## ########### ## """ | | ######### #???#/// ## # ## ## | | ????????# #???# ## # """"" ## # ### | | ????????# ############# # """"" ## | | ????????# # """"" + | | ????????# < + """"" ##### | +----------------------------------------------------+ Best States ------------- Heat Dissipation 28 Energy Generation 14 Energy Capacity 280 Matter Stores 300 Matter Capacity 300 Sight Range 16 Terrain Scan Density 10 ECM Strength 1 Evasion (%) 44 Recoil Reduction 2 Offensive Hacking 10 Item Schematics ----------------- Seismic Detector | -9/Materials | Scanalyzed Robot Schematics ------------------ None Fabricated ------------ Nothing Repaired ---------- Nothing Studied --------- None Alien Tech Used ----------------- None Achievements -------------- Party Time Challenges ------------ None Game ------ Seed ArmageddonSiegePendant Manual? 0 Play Time 00:42:13 Cumulative 11.2 hours Start 2025.12.01 @ 21:05:45 End 2025.12.02 @ 21:54:53 Sessions 2 Manual Loads 0 Difficulty Rogue Special Mode None Game No. 25 Rogue 25 Adventurer 0 Explorer 0 Win Type - Total 0 Types 0/0/0/0/0/0/0/0/0/0 Lore% 11 Gallery% 12 Achievement% 13 Wizard Run 0 Options --------- Layout 1 ASCII 0 Keyboard 0 Movement Mouse Keybinds 0 Fullscreen 1 Font 24/Smallcaps Map View 50x35 Zoom Use 0% Tactical HUD 0 Map Filters NONE Filters NONE Steam 1 RUN: afe431d4-e7f3-4be2-8c2c-b5e1810c1b79